fUSD/lending_fUSD_20250217
["ID","MTS","AMOUNT","RATE_DAILY","PERIOD"]
[353358343,1739794263901,-2044.39,0.0001378,2]
[353358344,1739794263911,-500.0,0.0001378,2]
[353358345,1739794263920,-500.0,0.0001378,2]
[353358346,1739794263930,-150.0,0.0001378,2]
[353358347,1739794263939,-150.0,0.0001378,2]
[353358348,1739794263948,-500.0,0.0001378,2]
[353358349,1739794263958,-2491.54,0.0001378,2]
[353358350,1739794263968,-504.89439029,0.0001378,2]
[353358351,1739794263978,-2429.13,0.0001378,2]
[353358352,1739794263987,-500.0,0.0001378,2]
[353358353,1739794263997,-500.0,0.0001378,2]
[353358354,1739794264007,-881.11,0.0001378,2]
[353358355,1739794264019,-500.0,0.0001378,2]
[353358356,1739794264030,-500.0,0.0001378,2]
[353358357,1739794264047,-3396.6,0.0001378,2]
[353358358,1739794264058,-914.07,0.0001378,2]
[353358359,1739794264068,-1977.33,0.0001378,2]
[353358360,1739794264077,-364.929723,0.0001378,2]
[353358361,1739794264087,-500.0,0.0001378,2]
[353358362,1739794264096,-1352.16,0.0001378,2]
[353358363,1739794264106,-500.0,0.0001378,2]
[353358364,1739794264115,-364.929723,0.0001378,2]
[353358365,1739794264125,-1992.34,0.0001378,2]
[353358366,1739794264134,-500.0,0.0001378,2]
[353358367,1739794264143,-500.0,0.0001378,2]
[353358368,1739794264153,-963.01,0.0001378,2]
[353358369,1739794264163,-3344.75,0.0001378,2]
[353358370,1739794264172,-151.0,0.0001378,2]
[353358371,1739794264182,-151.0,0.0001378,2]
[353358372,1739794264192,-500.0,0.0001378,2]
[353358373,1739794264201,-500.0,0.0001378,2]
[353358374,1739794264210,-986.84,0.0001378,2]
[353358375,1739794264220,-2578.12,0.0001378,2]
[353358376,1739794264229,-500.0,0.0001378,2]
[353358377,1739794264238,-1856.49,0.0001378,2]
[353358378,1739794264248,-3323.98,0.0001378,2]
[353358379,1739794264257,-500.0,0.0001378,2]
[353358380,1739794264266,-500.0,0.0001378,2]
[353358381,1739794264278,-1485.86,0.0001378,2]
[353358382,1739794264287,-1863.46,0.0001378,2]
[353358383,1739794264297,-2148.24,0.0001378,2]
[353358384,1739794264306,-2223.9,0.0001378,2]
[353358385,1739794264315,-610.4,0.0001378,2]
[353358386,1739794264325,-617.2,0.0001378,2]
[353358387,1739794264335,-500.0,0.0001378,2]
[353358388,1739794264344,-1888.98,0.0001378,2]
[353358389,1739794264353,-628.36,0.0001378,2]
[353358390,1739794264362,-500.0,0.0001378,2]
[353358391,1739794264372,-500.0,0.0001378,2]
[353358392,1739794264381,-500.0,0.0001378,2]
[353358393,1739794264391,-629.86,0.0001378,2]
[353358394,1739794264400,-2097.75,0.0001378,2]
[353358395,1739794264410,-151.0,0.0001378,2]
[353358396,1739794264420,-151.0,0.0001378,2]
[353358397,1739794264429,-993.94,0.0001378,2]
[353358398,1739794264438,-1349.11,0.0001378,2]
[353358399,1739794264448,-500.0,0.0001378,2]
[353358400,1739794264458,-500.0,0.0001378,2]
[353358401,1739794264468,-1922.64,0.0001378,2]
[353358402,1739794264482,-2230.56,0.0001378,2]
[353358403,1739794264491,-500.0,0.0001378,2]
[353358404,1739794264500,-744.07,0.0001378,2]
[353358405,1739794264509,-1865.68,0.0001378,2]
[353358406,1739794264521,-4289.36,0.0001378,2]
[353358407,1739794264531,-500.0,0.0001378,2]
[353358408,1739794264543,-2795.12,0.0001378,2]
[353358409,1739794264555,-1009.1,0.0001378,2]
[353358410,1739794264565,-1795.47,0.0001378,2]
[353358411,1739794264575,-170.87493285,0.0001378,2]
[353358412,1739794264587,-350.59124461,0.0001378,2]
[353358413,1739794264598,-500.0,0.0001378,2]
[353358414,1739794264608,-355.58175352,0.0001378,2]
[353358415,1739794264619,-2250.3,0.0001378,2]
[353358416,1739794264631,-501.83942955,0.0001378,2]
[353358417,1739794264641,-912.2,0.0001378,2]
[353358418,1739794264651,-743.48,0.0001378,2]
[353358419,1739794264662,-840.71,0.0001378,2]
[353358420,1739794264672,-500.0,0.0001378,2]
[353358421,1739794264681,-500.0,0.0001378,2]
[353358422,1739794264691,-178.298142,0.0001378,2]
[353358423,1739794264700,-178.298142,0.0001378,2]
[353358424,1739794264711,-500.0,0.0001378,2]
[353358425,1739794264721,-1839.35,0.0001378,2]
[353358426,1739794264730,-511.83473623,0.0001378,2]
[353358427,1739794264740,-500.0,0.0001378,2]
[353358428,1739794264750,-178.298142,0.0001378,2]
[353358429,1739794264761,-178.298142,0.0001378,2]
[353358430,1739794264774,-1580.31,0.0001378,2]
[353358431,1739794264784,-500.0,0.0001378,2]
[353358432,1739794264794,-500.0,0.0001378,2]
[353358433,1739794264803,-500.0,0.0001378,2]
[353358434,1739794264813,-500.0,0.0001378,2]
[353358435,1739794264823,-333.76,0.0001378,2]
[353358436,1739794264832,-500.0,0.0001378,2]
[353358437,1739794264842,-1705.19,0.0001378,2]
[353358438,1739794264851,-2388.32,0.0001378,2]
[353358439,1739794264861,-1404.94,0.0001378,2]
[353358440,1739794264871,-500.0,0.0001378,2]
[353358441,1739794264880,-1533.12,0.0001378,2]
[353358442,1739794264889,-2250.03,0.0001378,2]
[353358443,1739794264899,-656.63,0.0001378,2]
[353358444,1739794264908,-500.0,0.0001378,2]
[353358445,1739794264918,-3043.34,0.0001378,2]
[353358446,1739794264928,-500.0,0.0001378,2]
[353358447,1739794264937,-500.0,0.0001378,2]
[353358448,1739794264947,-500.0,0.0001378,2]
[353358449,1739794264956,-500.0,0.0001378,2]
[353358450,1739794264965,-500.0,0.0001378,2]
[353358451,1739794264974,-1461.79,0.0001378,2]
[353358452,1739794264984,-216.54377859,0.0001378,2]
[353358453,1739794264994,-500.0,0.0001378,2]
[353358454,1739794265003,-2374.04,0.0001378,2]
[353358455,1739794265013,-151.0,0.0001378,2]
[353358456,1739794265023,-262.169109,0.0001378,2]
[353358457,1739794265033,-1231.71,0.0001378,2]
[353358458,1739794265042,-882.49,0.0001378,2]
[353358459,1739794265052,-150.0,0.0001378,2]
[353358460,1739794265061,-398.72952442,0.0001378,2]
[353358461,1739794265071,-684.31,0.0001378,2]
[353358462,1739794265080,-1136.38,0.0001378,2]
[353358463,1739794265089,-1653.7,0.0001378,2]
[353358464,1739794265099,-2522.49,0.0001378,2]
[353358465,1739794265108,-505.76,0.0001378,2]
[353358466,1739794265117,-1417.83,0.0001378,2]
[353358467,1739794265127,-507.96377876,0.0001378,2]
[353358468,1739794265136,-500.0,0.0001378,2]
[353358469,1739794265145,-151.0,0.00013781,2]
[353358470,1739794265154,-151.0,0.00013781,2]
[353358471,1739794265164,-151.0,0.00013781,2]
[353358472,1739794265173,-208.872871,0.00013781,2]
[353358473,1739794265183,-151.0,0.00013781,2]
[353358474,1739794265192,-211.4,0.00013781,2]
[353358475,1739794265203,-211.4,0.00013781,2]
[353358476,1739794265212,-151.0,0.00013781,2]
[353358477,1739794265221,-151.0,0.00013781,2]
[353358478,1739794265230,-151.0,0.00013781,2]
[353358479,1739794265239,-156.409962,0.00013781,2]
[353358480,1739794265249,-151.0,0.00013781,2]
[353358481,1739794265259,-151.0,0.00013781,2]
[353358482,1739794265269,-151.0,0.00013781,2]
[353358483,1739794265278,-161.282031,0.00013781,2]
[353358484,1739794265287,-168.120785,0.00013781,2]
[353358485,1739794265296,-161.282031,0.00013781,2]
[353358486,1739794265305,-168.120785,0.00013781,2]
[353358487,1739794265314,-151.0,0.00013781,2]
[353358488,1739794265323,-151.0,0.00013781,2]
[353358489,1739794265332,-178.023001,0.00013781,2]
[353358490,1739794265342,-151.0,0.00013781,2]
[353358491,1739794265351,-151.0,0.00013781,2]
[353358492,1739794265361,-151.0,0.00013781,2]
[353358493,1739794265370,-197.895971,0.00013781,2]
[353358494,1739794265380,-197.895971,0.00013781,2]
[353358495,1739794265389,-151.0,0.00013781,2]
[353358496,1739794265399,-151.0,0.00013781,2]
[353358497,1739794265408,-241.4556,0.00013781,2]
[353358498,1739794265417,-241.4556,0.00013781,2]
[353358499,1739794265428,-151.0,0.00013781,2]
[353358500,1739794265438,-178.918646,0.00013781,2]
[353358501,1739794265447,-151.0,0.00013781,2]
[353358502,1739794265457,-151.0,0.00013781,2]
[353358503,1739794265466,-151.0,0.00013781,2]
[353358504,1739794265475,-151.0,0.00013781,2]
[353358505,1739794265484,-172.239129,0.00013781,2]
[353358506,1739794265493,-172.239129,0.00013781,2]
[353358507,1739794265502,-5012.947751,0.00013781,2]
[353358508,1739794265511,-151.0,0.00013781,2]
[353358509,1739794265526,-151.0,0.00013781,2]
[353358510,1739794265536,-151.0,0.00013781,2]
[353358511,1739794265550,-151.0,0.00013781,2]
[353358512,1739794265561,-151.0,0.00013781,2]
[353358513,1739794265573,-292.510272,0.00013781,2]
[353358514,1739794265582,-151.0,0.00013781,2]
[353358515,1739794265595,-205.621676,0.00013781,2]
[353358516,1739794265604,-205.621676,0.00013781,2]
[353358517,1739794265613,-165.171113,0.00013781,2]
[353358518,1739794265623,-151.0,0.00013781,2]
[353358519,1739794265632,-165.171113,0.00013781,2]
[353358520,1739794265641,-159.639267,0.00013781,2]
[353358521,1739794265650,-151.0,0.00013781,2]
[353358522,1739794265659,-151.0,0.00013781,2]
[353358523,1739794265668,-151.0,0.00013781,2]
[353358524,1739794265677,-364.929723,0.00013781,2]
[353358525,1739794265687,-364.929723,0.00013781,2]
[353358526,1739794265695,-150.0,0.00013791,2]
[353358527,1739794265704,-5553.0,0.000138,5]
[353358528,1739794265714,-2480.79717862,0.00013807,2]
[353358529,1739794265723,-1179.28474084,0.00013807,2]
[353358530,1739794265732,-174.86789251,0.00013807,2]
[353358531,1739794265741,-151.26230043,0.00013807,2]
[353358532,1739794265751,-151.65630798,0.00013807,2]
[353358533,1739794265760,-500.0,0.00013807,2]
[353358534,1739794265769,-776.28026233,0.00013815,2]
[353358535,1739794265779,-150.0,0.00013821,2]
[353358536,1739794265787,-171.111893,0.00013826,2]
[353358537,1739794265797,-171.111893,0.00013826,2]
[353358538,1739794265806,-170.926201,0.00013826,2]
[353358539,1739794265815,-170.926201,0.00013826,2]
[353358540,1739794265824,-170.926201,0.00013826,2]
[353358541,1739794265833,-170.926201,0.00013826,2]
[353358542,1739794265843,-150.0,0.00013827,2]
[353358543,1739794265852,-249.0,0.0001383,2]
[353358544,1739794265861,-150.0,0.00013833,2]
[353358545,1739794265870,-500.0,0.00013835,2]
[353358546,1739794265880,-232505.06461869,0.00013835,3]
[353358547,1739794265889,-150.0,0.00013835,2]
[353358548,1739794265899,-13107.74110174,0.00013836,2]
[353358549,1739794579052,616.0,0.0002,120]
[353358550,1739794675320,819.23097643,0.0002,120]
[353358551,1739794883073,684.31,0.0002,120]
[353358552,1739794897189,684.31,0.0002,120]
[353358553,1739794910227,684.31,0.0002,120]
[353358554,1739794921771,684.31,0.0002,120]
[353358555,1739794932277,684.31,0.0002,120]
[353358556,1739794943865,684.31,0.0002,120]
[353358557,1739794956193,684.31,0.0002,120]
[353358558,1739794968023,684.31,0.0002,120]
[353358559,1739794979435,684.31,0.0002,120]
[353358560,1739794990334,684.31,0.0002,120]
[353358561,1739795002042,684.31,0.0002,120]
[353358562,1739795013268,684.31,0.0002,120]
[353358563,1739795024007,684.31,0.0002,120]
[353358564,1739795035730,684.31,0.0002,120]
[353358565,1739795046347,684.31,0.0002,120]
[353358566,1739795056918,684.31,0.0002,120]
[353358567,1739795067240,684.31,0.0002,120]
[353358568,1739795079198,684.31,0.0002,120]
[353358569,1739795090684,684.31,0.0002,120]
[353358570,1739795103792,684.31,0.0002,120]
[353358571,1739795114451,684.31,0.0002,120]
[353358573,1739795179618,500.0,0.0002,120]
[353358574,1739795191617,500.0,0.0002,120]
[353358575,1739795201452,500.0,0.0002,120]
[353358576,1739795212939,500.0,0.0002,120]
[353358577,1739795224635,500.0,0.0002,120]
[353358586,1739795234722,500.0,0.0002,120]
[353358589,1739795246641,500.0,0.0002,120]
[353358591,1739795257101,500.0,0.0002,120]
[353358592,1739795310754,184.41,0.0002,120]
[353359122,1739795412994,500.0,0.0002,120]
[353359143,1739795432144,-1349.4455,8.836e-05,2]
[353359144,1739795432154,-150.0,8.904e-05,2]
[353359145,1739795432164,-350.5545,8.973e-05,2]
[353359146,1739795432174,-150.0,9.44e-05,2]
[353359147,1739795432183,-451.27454765,9.486e-05,2]
[353359148,1739795432193,-732.06,9.486e-05,2]
[353359149,1739795432203,-150.0,9.719e-05,2]
[353359150,1739795432212,-190.11417022,9.924e-05,2]
[353359151,1739795432221,-451.27454764,9.924e-05,2]
[353359152,1739795432231,-550.0,0.0001,2]
[353359153,1739795432240,-87632.22013685,0.0001,2]
[353359154,1739795432252,-35000.0,0.0001,2]
[353359155,1739795432263,-79167.03610647,0.0001,2]
[353359156,1739795432294,-8761.93030979,0.0001,2]
[353359157,1739795432312,-79805.02856562,0.0001,2]
[353359158,1739795432322,-21551.94011656,0.0001,2]
[353359159,1739795432340,-46674.12861671,0.0001,2]
[353359160,1739795432350,-500.0,0.00010058,2]
[353359161,1739795432360,-1000.0,0.00010058,2]
[353359162,1739795432369,-1000.0,0.00010058,2]
[353359163,1739795432379,-503.24,0.00010058,2]
[353359164,1739795432390,-490.03,0.00010058,2]
[353359165,1739795432399,-493.64,0.00010058,2]
[353359166,1739795432408,-497.06,0.00010058,2]
[353359167,1739795432417,-501.86,0.00010058,2]
[353359168,1739795432427,-505.0,0.00010058,2]
[353359169,1739795432436,-499.31,0.00010058,2]
[353359170,1739795432445,-490.06,0.00010058,2]
[353359171,1739795432455,-497.4,0.00010058,2]
[353359172,1739795432464,-502.59,0.00010058,2]
[353359173,1739795432474,-506.89,0.00010058,2]
[353359174,1739795432483,-507.44,0.00010058,2]
[353359175,1739795432492,-499.72,0.00010058,2]
[353359176,1739795432501,-496.65,0.00010058,2]
[353359177,1739795432511,-492.43,0.00010058,2]
[353359178,1739795432520,-500.26,0.00010058,2]
[353359179,1739795432530,-507.67,0.00010058,2]
[353359180,1739795432540,-490.62,0.00010058,2]
[353359182,1739795432549,-507.26,0.00010058,2]
[353359184,1739795432560,-509.09,0.00010058,2]
[353359186,1739795432570,-505.95,0.00010058,2]
[353359188,1739795432579,-363.23,0.00010137,2]
[353359190,1739795432588,-151.81,0.00010558,2]
[353359216,1739795432852,-150.6,0.00010558,2]
[353359217,1739795432862,-214.81022301,0.000108,2]
[353359218,1739795432873,-162.48493838,0.000109,2]
[353359219,1739795432882,-162.48493836,0.000109,2]
[353359220,1739795432891,-175.16,0.00011179,2]
[353359221,1739795432900,-1000.0,0.00011234,2]
[353359222,1739795432910,-1000.0,0.00011428,2]
[353359223,1739795432921,-1000.0,0.00011428,2]
[353359224,1739795432931,-162.48493836,0.0001171,2]
[353359226,1739795432941,-732.06,0.0001175,2]
[353359228,1739795432950,-150.7432094,0.00011758,2]
[353359230,1739795432959,-600.0,0.00012,2]
[353359232,1739795432970,-3925.47,0.00012483,2]
[353359234,1739795432979,-250.0,0.00012514,2]
[353359236,1739795432988,-150.0,0.00012526,2]
[353359238,1739795432998,-162.48493836,0.00012586,2]
[353359240,1739795433007,-1000.0,0.00012638,2]
[353359242,1739795433016,-983.71,0.00012715,2]
[353359244,1739795433025,-500.0,0.00012798,2]
[353359246,1739795433034,-1000.0,0.00012798,2]
[353359248,1739795433043,-1000.0,0.00012798,2]
[353359250,1739795433053,-600.0,0.000128,4]
[353359252,1739795433063,-1200.0,0.000129,4]
[353359254,1739795433072,-1238.26,0.00012983,2]
[353359256,1739795433082,-4000.0,0.00013,2]
[353359258,1739795433091,-150.0,0.00013041,2]
[353359260,1739795433100,-150.0,0.00013052,2]
[353359262,1739795433110,-552.267,0.00013076,2]
[353359264,1739795433119,-150.0,0.00013076,2]
[353359266,1739795433128,-151.0,0.00013076,2]
[353359268,1739795433137,-986.71,0.00013178,2]
[353359270,1739795433146,-314.81923681,0.000133,2]
[353359272,1739795433156,-500.0,0.00013369,2]
[353359274,1739795433165,-500.0,0.00013369,2]
[353359276,1739795433174,-338.08807248,0.00013369,2]
[353359278,1739795433184,-300285.02388814,0.0001337,2]
[353359281,1739795433202,-6904.89003891,0.0001337,2]
[353359283,1739795433214,-2000.0,0.0001337,2]
[353359286,1739795433232,-8876.48682558,0.0001337,2]
[353359300,1739795433353,500.0,0.0002,120]
[353359456,1739795437999,-4157.71290327,0.0001337,2]
[353359458,1739795438215,-851.70702,0.0001337,2]
[353359459,1739795438271,-636.0,0.0001337,2]
[353359650,1739795440272,-5441.00249838,0.0001337,2]
[353359652,1739795440287,-4344.94452145,0.0001337,2]
[353359654,1739795440299,-358.24756119,0.0001337,2]
[353359656,1739795440310,-69837.49773098,0.0001337,2]
[353359660,1739795440335,-392.4713874,0.0001337,2]
[353359666,1739795440387,-1999.97985147,0.0001337,2]
[353359668,1739795440399,-1694.15752987,0.0001337,2]
[353359680,1739795440503,-437.81033735,0.0001337,2]
[353359682,1739795440515,-370.93289998,0.0001337,2]
[353359843,1739795443242,-426876.98352202,0.0001337,2]
[353359845,1739795443254,-19678.16690729,0.0001337,2]
[353359848,1739795443298,-1129.84499985,0.0001337,2]
[353359849,1739795443375,-102981.11461922,0.0001337,2]
[353359850,1739795443399,-16844.76985854,0.0001337,2]
[353359867,1739795446083,-214298.68766341,0.0001337,2]
[353359868,1739795446093,-3368.93364711,0.000134,2]
[353359869,1739795446103,-3368.93364711,0.00013456,2]
[353359870,1739795446114,-162.48493836,0.00013462,2]
[353359871,1739795446124,-162.71,0.00013494,2]
[353359872,1739795446134,-150.0,0.00013494,2]
[353359873,1739795446145,-986.71,0.00013494,2]
[353359874,1739795446154,-4000.0,0.000135,2]
[353359875,1739795446165,-1900.0,0.000135,4]
[353359876,1739795446176,-3368.93364711,0.00013511,2]
[353359877,1739795446187,-676.6648762,0.00013559,2]
[353359878,1739795446197,-1149.45060915,0.00013559,2]
[353359879,1739795446207,-3368.93364711,0.00013567,2]
[353359880,1739795446217,-314.81923678,0.00013583,2]
[353359881,1739795446227,-1891.014,0.00013598,2]
[353359882,1739795446236,-898.88323412,0.000136,2]
[353359883,1739795446246,-2500.0,0.000136,4]
[353359884,1739795446256,-2500.25011264,0.00013619,2]
[353359885,1739795446266,-3368.93364711,0.00013622,2]
[353359886,1739795446276,-775.82,0.00013635,2]
[353359887,1739795446286,-440.13,0.00013635,2]
[353359888,1739795446295,-775.82,0.00013635,2]
[353359889,1739795446305,-440.13,0.00013635,2]
[353359890,1739795446315,-440.13,0.00013635,2]
[353359891,1739795446330,-775.82,0.00013635,2]
[353359892,1739795446340,-440.13,0.00013635,2]
[353359893,1739795446349,-775.82,0.00013635,2]
[353359894,1739795446360,-428.01,0.00013635,2]
[353359895,1739795446370,-901.61,0.00013635,2]
[353359896,1739795446380,-878.68,0.00013635,2]
[353359897,1739795446390,-500.0,0.00013657,2]
[353359898,1739795446400,-2000.0,0.00013657,2]
[353359899,1739795446410,-200.0,0.00013657,2]
[353359900,1739795446420,-365.50771562,0.00013669,2]
[353359901,1739795446430,-3368.93364711,0.00013678,2]
[353359902,1739795446440,-180.78628739,0.0001368,2]
[353359903,1739795446449,-591.16754778,0.0001368,2]
[353359904,1739795446459,-442.20419166,0.00013697,3]
[353359905,1739795446470,-843.226569,0.00013697,3]
[353359906,1739795446480,-300.0,0.00013697,2]
[353359908,1739795446490,-500.0,0.00013698,2]
[353359909,1739795446500,-500.0,0.00013698,2]
[353359910,1739795446509,-500.0,0.00013698,2]
[353359911,1739795446519,-500.0,0.00013698,2]
[353359912,1739795446529,-500.0,0.00013698,2]
[353359913,1739795446539,-500.0,0.00013698,2]
[353359914,1739795446549,-356.23619404,0.00013698,2]
[353359915,1739795446558,-500.0,0.00013698,2]
[353359916,1739795446568,-500.72947016,0.00013698,2]
[353359917,1739795446580,-501.21918191,0.00013698,2]
[353359918,1739795446590,-500.0,0.00013698,2]
[353359919,1739795446600,-501.9998096,0.00013698,2]
[353359920,1739795446610,-500.0,0.00013698,2]
[353359921,1739795446620,-500.0,0.00013698,2]
[353359922,1739795446630,-500.0,0.00013698,2]
[353359923,1739795446640,-501.80682621,0.00013698,2]
[353359924,1739795446650,-500.0,0.00013698,2]
[353359925,1739795446660,-500.0,0.00013698,2]
[353359926,1739795446669,-531.93434091,0.00013698,2]
[353359927,1739795446679,-500.0,0.00013698,2]
[353359928,1739795446689,-222.30421584,0.00013698,2]
[353359929,1739795446699,-252.20488445,0.00013698,2]
[353359930,1739795446708,-635.4667227,0.00013698,2]
[353359931,1739795446718,-181.17320664,0.00013698,2]
[353359932,1739795446728,-500.0,0.00013698,2]
[353359933,1739795446738,-500.0,0.00013698,2]
[353359934,1739795446747,-550.72606086,0.00013698,2]
[353359935,1739795446757,-500.0,0.00013698,2]
[353359936,1739795446767,-500.0,0.00013698,2]
[353359937,1739795446777,-1521.081145,0.00013698,2]
[353359938,1739795446787,-1655.855558,0.00013698,2]
[353359939,1739795446796,-500.0,0.00013698,2]
[353359940,1739795446806,-500.0,0.00013698,2]
[353359941,1739795446815,-500.0,0.00013698,2]
[353359942,1739795446827,-447.79704954,0.00013698,2]
[353359943,1739795446837,-500.0,0.00013698,2]
[353359944,1739795446850,-500.0,0.00013698,2]
[353359945,1739795446860,-500.0,0.00013698,2]
[353359946,1739795446870,-450.25060473,0.00013698,2]
[353359947,1739795446880,-518.71125543,0.00013698,2]
[353359948,1739795446890,-500.0,0.00013698,2]
[353359949,1739795446900,-500.0,0.00013698,2]
[353359950,1739795446910,-500.0,0.00013698,2]
[353359951,1739795446920,-500.0,0.00013698,2]
[353359952,1739795446933,-500.0,0.00013698,2]
[353359953,1739795446943,-503.21933804,0.00013698,2]
[353359954,1739795446953,-500.0,0.00013698,2]
[353359955,1739795446964,-500.0,0.00013698,2]
[353359956,1739795446975,-500.0,0.00013698,2]
[353359957,1739795446984,-500.0,0.00013698,2]
[353359958,1739795446994,-650.21,0.00013698,2]
[353359959,1739795447006,-500.0,0.00013698,2]
[353359960,1739795447017,-500.0,0.00013698,2]
[353359961,1739795447027,-500.0,0.00013698,2]
[353359962,1739795447038,-156.427096,0.00013698,2]
[353359963,1739795447047,-500.0,0.00013698,2]
[353359964,1739795447058,-500.0,0.00013698,2]
[353359965,1739795447067,-500.0,0.00013698,2]
[353359966,1739795447079,-733.11,0.00013698,2]
[353359967,1739795447090,-500.0,0.00013698,2]
[353359968,1739795447100,-500.0,0.00013698,2]
[353359969,1739795447111,-500.0,0.00013698,2]
[353359970,1739795447121,-500.0,0.00013698,2]
[353359971,1739795447130,-500.0,0.00013698,2]
[353359972,1739795447140,-500.0,0.00013698,2]
[353359973,1739795447150,-500.0,0.00013698,2]
[353359974,1739795447160,-500.0,0.00013698,2]
[353359975,1739795447170,-500.0,0.00013698,2]
[353359976,1739795447179,-500.0,0.00013698,2]
[353359977,1739795447189,-500.0,0.00013698,2]
[353359978,1739795447199,-500.0,0.00013698,2]
[353359979,1739795447208,-500.0,0.00013698,2]
[353359980,1739795447219,-500.0,0.00013698,2]
[353359981,1739795447229,-500.0,0.00013698,2]
[353359982,1739795447598,-934.22,0.00013698,2]
[353359983,1739795447609,-688.37,0.00013698,2]
[353359984,1739795447618,-505.25272836,0.00013698,2]
[353359985,1739795447627,-500.0,0.00013698,2]
[353359986,1739795447637,-500.0,0.00013698,2]
[353359987,1739795447647,-500.0,0.00013698,2]
[353359988,1739795447657,-500.0,0.00013698,2]
[353359989,1739795447667,-500.0,0.00013698,2]
[353359990,1739795447676,-500.0,0.00013698,2]
[353359991,1739795447686,-151.932216,0.00013698,2]
[353359992,1739795447695,-500.0,0.00013698,2]
[353359993,1739795447706,-500.0,0.00013698,2]
[353359994,1739795447716,-500.0,0.00013698,2]
[353359995,1739795447726,-829.55,0.00013698,2]
[353359996,1739795447736,-500.0,0.00013698,2]
[353359997,1739795447746,-500.0,0.00013698,2]
[353359998,1739795447756,-500.0,0.00013698,2]
[353359999,1739795447766,-500.0,0.00013698,2]
[353360000,1739795447776,-500.0,0.00013698,2]
[353360001,1739795447785,-500.0,0.00013698,2]
[353360002,1739795447795,-156.295104,0.00013698,2]
[353360003,1739795447804,-500.0,0.00013698,2]
[353360004,1739795447813,-500.0,0.00013698,2]
[353360005,1739795447823,-500.0,0.00013698,2]
[353360006,1739795447838,-500.0,0.00013698,2]
[353360007,1739795447848,-500.0,0.00013698,2]
[353360008,1739795447858,-501.61531479,0.00013698,2]
[353360009,1739795447867,-505.53380167,0.00013698,2]
[353360010,1739795447876,-155.788179,0.00013698,2]
[353360011,1739795447887,-500.0,0.00013698,2]
[353360012,1739795447896,-500.0,0.00013698,2]
[353360013,1739795447906,-500.0,0.00013698,2]
[353360014,1739795447916,-500.0,0.00013698,2]
[353360015,1739795447930,-500.0,0.00013698,2]
[353360016,1739795447940,-500.0,0.00013698,2]
[353360017,1739795447950,-500.0,0.00013698,2]
[353360018,1739795447959,-500.0,0.00013698,2]
[353360019,1739795447969,-500.0,0.00013698,2]
[353360020,1739795447979,-500.0,0.00013698,2]
[353360021,1739795447988,-500.0,0.00013698,2]
[353360022,1739795447998,-500.0,0.00013698,2]
[353360023,1739795448009,-500.0,0.00013698,2]
[353360024,1739795448018,-500.0,0.00013698,2]
[353360025,1739795448027,-500.0,0.00013698,2]
[353360026,1739795448038,-500.0,0.00013698,2]
[353360027,1739795448047,-500.0,0.00013698,2]
[353360028,1739795448057,-500.0,0.00013698,2]